[Event "Late-Titled-Tuesday-Blitz-May-14-2024"]
[Site "Chess.com"]
[Date "2024.05.14"]
[Round "10"]
[White "HowTo2Draw"]
[Black "Sanyura"]
[Result "0-1"]
[WhiteElo "2575"]
[BlackElo "2657"]
[TimeControl "180+1"]
[EndTime "15:55:45 PDT"]
[Termination "Sanyura won by resignation"]

1. c4 {[%clk 0:03:00.9]} 1... Nf6 {[%clk 0:02:57.6]} 2. g3 {[%clk 0:03:00.7]}
2... g6 {[%clk 0:02:57.6]} 3. Bg2 {[%clk 0:03:01.1]} 3... Bg7 {[%clk 0:02:50.2]}
4. b3 {[%clk 0:03:01.6]} 4... O-O {[%clk 0:02:50.8]} 5. Bb2 {[%clk 0:03:02.2]}
5... d6 {[%clk 0:02:51.4]} 6. Nf3 {[%clk 0:03:01.8]} 6... Nbd7 {[%clk 0:02:52]}
7. d4 {[%clk 0:03:00.4]} 7... e5 {[%clk 0:02:52.4]} 8. dxe5 {[%clk 0:03:00]}
8... Ng4 {[%clk 0:02:52.8]} 9. O-O {[%clk 0:02:59.4]} 9... Ngxe5 {[%clk
0:02:53.5]} 10. Nxe5 {[%clk 0:02:59.3]} 10... Nxe5 {[%clk 0:02:54.4]} 11. Nc3
{[%clk 0:02:58.8]} 11... Re8 {[%clk 0:02:54.4]} 12. Qd2 {[%clk 0:02:58.5]} 12...
a5 {[%clk 0:02:55]} 13. Rac1 {[%clk 0:02:38.7]} 13... h5 {[%clk 0:02:07.6]} 14.
h4 {[%clk 0:02:33.7]} 14... Bg4 {[%clk 0:01:44.1]} 15. Bxb7 {[%clk 0:02:19.8]}
15... Rb8 {[%clk 0:01:33.2]} 16. Bg2 {[%clk 0:02:20.2]} 16... g5 {[%clk
0:01:17.5]} 17. hxg5 {[%clk 0:02:04.5]} 17... h4 {[%clk 0:01:17.5]} 18. gxh4
{[%clk 0:02:01.8]} 18... Qd7 {[%clk 0:01:11.6]} 19. Nd5 {[%clk 0:01:57.6]} 19...
Bh3 {[%clk 0:01:10.7]} 20. Qf4 {[%clk 0:01:50.1]} 20... Bxg2 {[%clk 0:01:07.3]}
21. Kxg2 {[%clk 0:01:49.9]} 21... Ng6 {[%clk 0:01:04.5]} 22. Nf6+ {[%clk
0:01:48.6]} 22... Bxf6 {[%clk 0:00:36.1]} 23. Qxf6 {[%clk 0:01:47.4]} 23... Qg4+
{[%clk 0:00:36.4]} 24. Kh2 {[%clk 0:01:43.3]} 24... Qxh4+ {[%clk 0:00:36.7]} 25.
Kg1 {[%clk 0:01:43.5]} 25... Ne5 {[%clk 0:00:17.7]} 26. Qf5 {[%clk 0:01:26.7]}
26... Ng4 {[%clk 0:00:16]} 27. Qf4 {[%clk 0:01:26.4]} 27... Rxe2 {[%clk
0:00:15]} 28. Bd4 {[%clk 0:01:19.2]} 28... Re4 {[%clk 0:00:09.9]} 29. Qg3 {[%clk
0:01:10.7]} 29... Qxg3+ {[%clk 0:00:10.3]} 30. fxg3 {[%clk 0:01:11.6]} 30...
Rxd4 {[%clk 0:00:11]} 31. Rf4 {[%clk 0:01:12]} 31... Rxf4 {[%clk 0:00:10.8]} 32.
gxf4 {[%clk 0:01:12.9]} 32... Ne3 {[%clk 0:00:11]} 33. Kf2 {[%clk 0:01:13.4]}
33... Nf5 {[%clk 0:00:11.1]} 34. Kf3 {[%clk 0:01:14.1]} 34... Re8 {[%clk
0:00:11.3]} 35. c5 {[%clk 0:01:14.2]} 35... d5 {[%clk 0:00:10.3]} 36. c6 {[%clk
0:01:14.3]} 36... Re3+ {[%clk 0:00:07.8]} 37. Kg4 {[%clk 0:01:14.2]} 37... Nd6
{[%clk 0:00:07.1]} 38. Rc5 {[%clk 0:01:12.7]} 38... d4 {[%clk 0:00:06.7]} 39.
Rd5 {[%clk 0:01:12.4]} 39... Ne4 {[%clk 0:00:04.2]} 40. Rxd4 {[%clk 0:01:09]}
40... Kg7 {[%clk 0:00:04.8]} 41. Rd5 {[%clk 0:01:02.7]} 41... Kg6 {[%clk
0:00:05]} 42. f5+ {[%clk 0:01:02.4]} 42... Kg7 {[%clk 0:00:05.3]} 43. Kf4 {[%clk
0:01:00.2]} 43... Re2 {[%clk 0:00:05.6]} 44. Rxa5 {[%clk 0:01:00.3]} 44... Nd6
{[%clk 0:00:04.4]} 45. Rd5 {[%clk 0:00:55.2]} 45... Rf2+ {[%clk 0:00:04.8]} 46.
Kg4 {[%clk 0:00:55.4]} 46... Rc2 {[%clk 0:00:05.3]} 47. b4 {[%clk 0:00:41.9]}
47... Rxc6 {[%clk 0:00:05.4]} 48. Rc5 {[%clk 0:00:42]} 48... Rb6 {[%clk
0:00:05]} 49. Rxc7 {[%clk 0:00:41.2]} 49... Rxb4+ {[%clk 0:00:05.2]} 50. Kf3
{[%clk 0:00:40]} 50... Nxf5 {[%clk 0:00:05.5]} 51. Ra7 {[%clk 0:00:38.4]} 51...
Nd4+ {[%clk 0:00:05.5]} 52. Kg3 {[%clk 0:00:36.7]} 52... Ne6 {[%clk 0:00:05.5]}
53. g6 {[%clk 0:00:36.3]} 53... Kxg6 {[%clk 0:00:05.6]} 54. a4 {[%clk
0:00:37.1]} 54... f5 {[%clk 0:00:05.6]} 55. Ra8 {[%clk 0:00:36.5]} 55... Nc5
{[%clk 0:00:05.1]} 56. a5 {[%clk 0:00:35.7]} 56... Rb3+ {[%clk 0:00:04.8]} 57.
Kf4 {[%clk 0:00:35.4]} 57... Ne6+ {[%clk 0:00:05.2]} 58. Ke5 {[%clk 0:00:35.6]}
58... Nc7 {[%clk 0:00:05.3]} 59. Rg8+ {[%clk 0:00:33.5]} 59... Kf7 {[%clk
0:00:04.5]} 60. Rc8 {[%clk 0:00:33]} 60... Rb5+ {[%clk 0:00:04.9]} 61. Kd6
{[%clk 0:00:28.3]} 61... Ne6 {[%clk 0:00:03.3]} 62. Ra8 {[%clk 0:00:24.6]} 62...
f4 {[%clk 0:00:03.7]} 63. a6 {[%clk 0:00:23.3]} 63... f3 {[%clk 0:00:04]} 64. a7
{[%clk 0:00:23.7]} 64... Ra5 {[%clk 0:00:04.4]} 65. Rh8 {[%clk 0:00:20.2]} 65...
Rxa7 {[%clk 0:00:03.7]} 66. Rh3 {[%clk 0:00:20.7]} 66... Ra3 {[%clk 0:00:03.3]}
67. Ke5 {[%clk 0:00:20.3]} 67... Ng5 {[%clk 0:00:02.3]} 68. Rg3 {[%clk
0:00:20.1]} 68... Kg6 {[%clk 0:00:03]} 69. Kf4 {[%clk 0:00:20.3]} 69... Ra4+
{[%clk 0:00:03.6]} 70. Ke5 {[%clk 0:00:20.5]} 70... Kh5 {[%clk 0:00:04.3]} 71.
Kf5 {[%clk 0:00:20.7]} 71... Kh4 {[%clk 0:00:03.6]} 72. Rg1 {[%clk 0:00:19]}
72... f2 {[%clk 0:00:03.6]} 73. Rf1 {[%clk 0:00:18.5]} 73... Nh3 {[%clk
0:00:04.2]} 74. Ke5 {[%clk 0:00:15.9]} 74... Kg3 {[%clk 0:00:04.5]} 75. Rb1
{[%clk 0:00:14.4]} 75... Kg2 {[%clk 0:00:04.5]} 0-1

[Event "Late-Titled-Tuesday-Blitz-May-14-2024"]
[Site "Chess.com"]
[Date "2024.05.14"]
[Round "10"]
[White "karinachess1"]
[Black "cristianserban1"]
[Result "1-0"]
[WhiteElo "2630"]
[BlackElo "2511"]
[TimeControl "180+1"]
[EndTime "15:55:45 PDT"]
[Termination "karinachess1 won by checkmate"]

1. d4 {[%clk 0:03:00.9]} 1... Nf6 {[%clk 0:03:00]} 2. c4 {[%clk 0:03:01.1]} 2...
b6 {[%clk 0:02:58.1]} 3. Nc3 {[%clk 0:02:56.6]} 3... Bb7 {[%clk 0:02:58.5]} 4.
f3 {[%clk 0:02:55.9]} 4... d5 {[%clk 0:02:57.4]} 5. cxd5 {[%clk 0:02:54.2]} 5...
Nxd5 {[%clk 0:02:58.3]} 6. e4 {[%clk 0:02:54.9]} 6... Nxc3 {[%clk 0:02:58.4]} 7.
bxc3 {[%clk 0:02:55.8]} 7... e6 {[%clk 0:02:51.1]} 8. Bb5+ {[%clk 0:02:54.4]}
8... c6 {[%clk 0:02:51.5]} 9. Bd3 {[%clk 0:02:54.1]} 9... Be7 {[%clk 0:02:52]}
10. Ne2 {[%clk 0:02:52]} 10... O-O {[%clk 0:02:52.5]} 11. O-O {[%clk 0:02:48.9]}
11... c5 {[%clk 0:02:52.8]} 12. Be3 {[%clk 0:02:44.2]} 12... cxd4 {[%clk
0:02:53.2]} 13. cxd4 {[%clk 0:02:43.6]} 13... Nc6 {[%clk 0:02:53.6]} 14. Rc1
{[%clk 0:02:40.6]} 14... Rc8 {[%clk 0:02:53.2]} 15. Qd2 {[%clk 0:02:32.4]} 15...
Qd6 {[%clk 0:02:50.9]} 16. Rfd1 {[%clk 0:02:19.9]} 16... Qa3 {[%clk 0:02:50.9]}
17. Bb1 {[%clk 0:01:27.3]} 17... Bb4 {[%clk 0:02:36.2]} 18. Qd3 {[%clk 0:01:27]}
18... Ba6 {[%clk 0:02:34.1]} 19. Qxa3 {[%clk 0:01:17]} 19... Bxa3 {[%clk
0:02:35]} 20. Rc2 {[%clk 0:01:17]} 20... Nb4 {[%clk 0:02:19.4]} 21. Rxc8 {[%clk
0:01:17]} 21... Rxc8 {[%clk 0:02:18.4]} 22. Kf2 {[%clk 0:01:15.4]} 22... Bb5
{[%clk 0:02:14.1]} 23. d5 {[%clk 0:01:13]} 23... exd5 {[%clk 0:02:07.2]} 24.
exd5 {[%clk 0:01:13.9]} 24... Rd8 {[%clk 0:02:02.4]} 25. Nc3 {[%clk 0:01:11.8]}
25... Bc4 {[%clk 0:01:58.6]} 26. d6 {[%clk 0:01:03.1]} 26... Nc6 {[%clk
0:01:58.4]} 27. Be4 {[%clk 0:00:54.4]} 27... Na5 {[%clk 0:01:47.6]} 28. Bf4
{[%clk 0:00:49.4]} 28... Be6 {[%clk 0:01:47.8]} 29. h4 {[%clk 0:00:37.3]} 29...
Nc4 {[%clk 0:01:47.4]} 30. Nb5 {[%clk 0:00:34.1]} 30... Bc5+ {[%clk 0:01:47.4]}
31. Kg3 {[%clk 0:00:34.2]} 31... a6 {[%clk 0:01:37.8]} 32. Nc7 {[%clk
0:00:34.4]} 32... Bxd6 {[%clk 0:01:38.2]} 33. Bxd6 {[%clk 0:00:28.7]} 33... Rxd6
{[%clk 0:01:38.5]} 34. Rxd6 {[%clk 0:00:21]} 34... Nxd6 {[%clk 0:01:39.4]} 35.
Bb1 {[%clk 0:00:17.6]} 35... Bc4 {[%clk 0:01:35.3]} 36. Na8 {[%clk 0:00:16.5]}
36... b5 {[%clk 0:01:30]} 37. Nb6 {[%clk 0:00:16.6]} 37... Be6 {[%clk
0:01:30.1]} 38. Kf4 {[%clk 0:00:15.9]} 38... f6 {[%clk 0:01:27.6]} 39. Ke3
{[%clk 0:00:12.7]} 39... Kf7 {[%clk 0:01:22.7]} 40. Kd4 {[%clk 0:00:11.5]} 40...
Nb7 {[%clk 0:01:08.6]} 41. Nd5 {[%clk 0:00:07.1]} 41... a5 {[%clk 0:00:26.8]}
42. Bxh7 {[%clk 0:00:05.3]} 42... g6 {[%clk 0:00:24.4]} 43. Nf4 {[%clk
0:00:05.5]} 43... Bf5 {[%clk 0:00:23.6]} 44. h5 {[%clk 0:00:05.8]} 44... b4
{[%clk 0:00:12.7]} 45. Bxg6+ {[%clk 0:00:06]} 45... Bxg6 {[%clk 0:00:13]} 46.
hxg6+ {[%clk 0:00:06.9]} 46... Kg7 {[%clk 0:00:13.5]} 47. Kc4 {[%clk 0:00:07.5]}
47... Nd6+ {[%clk 0:00:13.6]} 48. Kc5 {[%clk 0:00:07.7]} 48... Nf5 {[%clk
0:00:14.1]} 49. Kb5 {[%clk 0:00:07.5]} 49... Nd4+ {[%clk 0:00:11.2]} 50. Kxa5
{[%clk 0:00:07.6]} 50... b3 {[%clk 0:00:12.1]} 51. axb3 {[%clk 0:00:07.6]} 51...
Nxb3+ {[%clk 0:00:13]} 52. Kb4 {[%clk 0:00:07.9]} 52... Nd2 {[%clk 0:00:13.3]}
53. Kc3 {[%clk 0:00:07.9]} 53... Nf1 {[%clk 0:00:12.7]} 54. Kd4 {[%clk
0:00:07.2]} 54... Ng3 {[%clk 0:00:12.6]} 55. Kd5 {[%clk 0:00:07.2]} 55... Nf5
{[%clk 0:00:12.3]} 56. Ke4 {[%clk 0:00:07.1]} 56... Nh4 {[%clk 0:00:12.3]} 57.
Ke3 {[%clk 0:00:05.8]} 57... Nf5+ {[%clk 0:00:12.2]} 58. Kf2 {[%clk 0:00:06.1]}
58... Ne7 {[%clk 0:00:12.7]} 59. g4 {[%clk 0:00:06.3]} 59... Nc6 {[%clk
0:00:12.5]} 60. Kg3 {[%clk 0:00:06.1]} 60... Ne5 {[%clk 0:00:12.9]} 61. Kf2
{[%clk 0:00:04.9]} 61... Nc6 {[%clk 0:00:13.1]} 62. Ke3 {[%clk 0:00:05.5]} 62...
Ne5 {[%clk 0:00:12.7]} 63. Ke4 {[%clk 0:00:06.1]} 63... Nc6 {[%clk 0:00:13]} 64.
Kf5 {[%clk 0:00:06.2]} 64... Ne5 {[%clk 0:00:12.7]} 65. Nh5+ {[%clk 0:00:06.3]}
65... Kh6 {[%clk 0:00:11.4]} 66. g7 {[%clk 0:00:05.3]} 66... Kh7 {[%clk
0:00:10.7]} 67. Kxf6 {[%clk 0:00:05.8]} 67... Nxf3 {[%clk 0:00:10.3]} 68. g5
{[%clk 0:00:06]} 68... Nh4 {[%clk 0:00:09.6]} 69. Nf4 {[%clk 0:00:05.1]} 69...
Kg8 {[%clk 0:00:09.6]} 70. Nd5 {[%clk 0:00:04.4]} 70... Ng6 {[%clk 0:00:09.8]}
71. Ne3 {[%clk 0:00:02.4]} 71... Nf4 {[%clk 0:00:09.7]} 72. Nf5 {[%clk
0:00:02.7]} 72... Ng6 {[%clk 0:00:09.5]} 73. Nh6+ {[%clk 0:00:02.3]} 73... Kh7
{[%clk 0:00:09.8]} 74. g8=Q# {[%clk 0:00:03.2]} 1-0

[Event "Late-Titled-Tuesday-Blitz-May-14-2024"]
[Site "Chess.com"]
[Date "2024.05.14"]
[Round "11"]
[White "PhileKhoob"]
[Black "gabduschew"]
[Result "1-0"]
[WhiteElo "2331"]
[BlackElo "2350"]
[TimeControl "180+1"]
[EndTime "16:00:03 PDT"]
[Termination "PhileKhoob won by resignation"]

1. Nf3 {[%clk 0:02:38.2]} 1... d5 {[%clk 0:02:56.3]} 2. g3 {[%clk 0:02:37.7]}
2... c6 {[%clk 0:02:55.3]} 3. Bg2 {[%clk 0:02:38.3]} 3... Bg4 {[%clk 0:02:54.6]}
4. Ne5 {[%clk 0:02:37.1]} 4... Bf5 {[%clk 0:02:51.8]} 5. c4 {[%clk 0:02:34.7]}
5... e6 {[%clk 0:02:51.2]} 6. O-O {[%clk 0:02:32.7]} 6... Nd7 {[%clk 0:02:49.4]}
7. Nxd7 {[%clk 0:02:31.1]} 7... Qxd7 {[%clk 0:02:46.4]} 8. cxd5 {[%clk
0:02:29.9]} 8... exd5 {[%clk 0:02:47.3]} 9. d4 {[%clk 0:02:23.4]} 9... O-O-O
{[%clk 0:02:43.7]} 10. Nc3 {[%clk 0:02:11.3]} 10... Nf6 {[%clk 0:02:37.6]} 11.
Bf4 {[%clk 0:01:57.6]} 11... Bh3 {[%clk 0:02:34.9]} 12. Qa4 {[%clk 0:01:42.5]}
12... b6 {[%clk 0:01:49.4]} 13. Qa6+ {[%clk 0:01:33.9]} 13... Qb7 {[%clk
0:01:48.1]} 14. Bxh3+ {[%clk 0:01:30.2]} 1-0

[Event "Late-Titled-Tuesday-Blitz-May-14-2024"]
[Site "Chess.com"]
[Date "2024.05.14"]
[Round "11"]
[White "Gangster-accountant01"]
[Black "Rital44"]
[Result "1-0"]
[WhiteElo "2600"]
[BlackElo "2704"]
[TimeControl "180+1"]
[EndTime "16:00:41 PDT"]
[Termination "Gangster-accountant01 won by resignation"]

1. c4 {[%clk 0:02:59.6]} 1... g6 {[%clk 0:02:59]} 2. d4 {[%clk 0:02:56.1]} 2...
Bg7 {[%clk 0:02:53.9]} 3. Nc3 {[%clk 0:02:54]} 3... c5 {[%clk 0:02:39.7]} 4. d5
{[%clk 0:02:47.9]} 4... d6 {[%clk 0:02:38.2]} 5. e4 {[%clk 0:02:46]} 5... Nf6
{[%clk 0:02:37.4]} 6. f4 {[%clk 0:02:43.5]} 6... O-O {[%clk 0:02:33.2]} 7. Nf3
{[%clk 0:02:43]} 7... e6 {[%clk 0:02:32.6]} 8. Be2 {[%clk 0:02:41.7]} 8... exd5
{[%clk 0:02:31.8]} 9. cxd5 {[%clk 0:02:42.6]} 9... Re8 {[%clk 0:02:29.1]} 10. e5
{[%clk 0:02:40.8]} 10... Nfd7 {[%clk 0:02:25.8]} 11. e6 {[%clk 0:02:40.4]} 11...
Nf6 {[%clk 0:02:19.9]} 12. O-O {[%clk 0:02:38.6]} 12... fxe6 {[%clk 0:02:15.6]}
13. dxe6 {[%clk 0:02:38.9]} 13... Bxe6 {[%clk 0:02:16.5]} 14. Ng5 {[%clk
0:02:38.7]} 14... d5 {[%clk 0:02:08.6]} 15. Bf3 {[%clk 0:02:25.6]} 15... d4
{[%clk 0:02:00.3]} 16. Nxe6 {[%clk 0:02:23.3]} 16... Rxe6 {[%clk 0:01:58.9]} 17.
Bxb7 {[%clk 0:02:23.1]} 17... Nc6 {[%clk 0:01:53]} 18. Qb3 {[%clk 0:02:18.8]}
18... Kf7 {[%clk 0:01:46.1]} 19. Re1 {[%clk 0:02:15.4]} 19... Qd7 {[%clk
0:01:26.5]} 20. Bxa8 {[%clk 0:02:07.9]} 20... dxc3 {[%clk 0:01:24.4]} 21. Qxe6+
{[%clk 0:02:05.3]} 21... Qxe6 {[%clk 0:01:24]} 22. Rxe6 {[%clk 0:02:05.2]} 22...
Nd4 {[%clk 0:01:18.1]} 23. Rxf6+ {[%clk 0:01:55.3]} 23... Bxf6 {[%clk 0:01:15]}
24. bxc3 {[%clk 0:01:55.1]} 24... Ne2+ {[%clk 0:01:14.8]} 25. Kf2 {[%clk
0:01:55.3]} 25... Nxc3 {[%clk 0:01:15.7]} 26. Bb2 {[%clk 0:01:55.2]} 26... Ne4+
{[%clk 0:01:15.6]} 27. Bxe4 {[%clk 0:01:54.8]} 27... Bxb2 {[%clk 0:01:15.1]} 28.
Rb1 {[%clk 0:01:55.3]} 28... Bd4+ {[%clk 0:01:15.6]} 29. Kf3 {[%clk 0:01:55.6]}
1-0

[Event "Late-Titled-Tuesday-Blitz-May-14-2024"]
[Site "Chess.com"]
[Date "2024.05.14"]
[Round "11"]
[White "DominguezOnYoutube"]
[Black "MatthewG-p4p"]
[Result "1-0"]
[WhiteElo "3024"]
[BlackElo "2848"]
[TimeControl "180+1"]
[EndTime "16:01:05 PDT"]
[Termination "DominguezOnYoutube won by checkmate"]

1. e4 {[%clk 0:03:00.9]} 1... e6 {[%clk 0:02:53.9]} 2. d4 {[%clk 0:03:00.4]}
2... d5 {[%clk 0:02:54.8]} 3. Nc3 {[%clk 0:03:00]} 3... Bb4 {[%clk 0:02:55.4]}
4. e5 {[%clk 0:03:00.1]} 4... Ne7 {[%clk 0:02:55.4]} 5. a3 {[%clk 0:03:00.3]}
5... Bxc3+ {[%clk 0:02:56.1]} 6. bxc3 {[%clk 0:03:01.1]} 6... c5 {[%clk
0:02:57]} 7. Qg4 {[%clk 0:03:00.4]} 7... cxd4 {[%clk 0:02:56.2]} 8. Bd3 {[%clk
0:02:58.6]} 8... Qa5 {[%clk 0:02:55.6]} 9. Ne2 {[%clk 0:02:51.9]} 9... O-O
{[%clk 0:02:55.4]} 10. h4 {[%clk 0:02:35.1]} 10... Nbc6 {[%clk 0:02:43.6]} 11.
Qg3 {[%clk 0:02:28.8]} 11... Kh8 {[%clk 0:02:28.3]} 12. h5 {[%clk 0:02:20.9]}
12... h6 {[%clk 0:02:26.5]} 13. Rh4 {[%clk 0:01:37.9]} 13... dxc3 {[%clk
0:02:22.7]} 14. Rg4 {[%clk 0:01:14.5]} 14... Rg8 {[%clk 0:02:18.9]} 15. Bxh6
{[%clk 0:01:13.6]} 15... gxh6 {[%clk 0:02:12.1]} 16. Qf4 {[%clk 0:01:12.6]}
16... Rg5 {[%clk 0:01:24.2]} 17. Qf6+ {[%clk 0:01:07.1]} 17... Kg8 {[%clk
0:01:24]} 18. Qxh6 {[%clk 0:01:00.4]} 18... Rxg4 {[%clk 0:01:23.2]} 19. Bh7+
{[%clk 0:01:00]} 19... Kh8 {[%clk 0:01:24.1]} 20. Bg6+ {[%clk 0:01:00.1]} 20...
Kg8 {[%clk 0:01:25]} 21. Qh7+ {[%clk 0:01:00.6]} 21... Kf8 {[%clk 0:01:25.9]}
22. Qxf7# {[%clk 0:01:01]} 1-0

[Event "Late-Titled-Tuesday-Blitz-May-14-2024"]
[Site "Chess.com"]
[Date "2024.05.14"]
[Round "11"]
[White "Durarbayli"]
[Black "Arystanner"]
[Result "1-0"]
[WhiteElo "2948"]
[BlackElo "2832"]
[TimeControl "180+1"]
[EndTime "16:01:10 PDT"]
[Termination "Durarbayli won by resignation"]

1. e4 {[%clk 0:02:58]} 1... c5 {[%clk 0:03:00.7]} 2. Nf3 {[%clk 0:02:58]} 2...
Nc6 {[%clk 0:03:01.5]} 3. d4 {[%clk 0:02:58.2]} 3... cxd4 {[%clk 0:03:01.6]} 4.
Nxd4 {[%clk 0:02:59.1]} 4... e5 {[%clk 0:03:02.3]} 5. Nb5 {[%clk 0:02:56.8]}
5... d6 {[%clk 0:03:02.9]} 6. N1c3 {[%clk 0:02:56.6]} 6... a6 {[%clk 0:03:03.3]}
7. Na3 {[%clk 0:02:57]} 7... Be7 {[%clk 0:03:03.5]} 8. Be3 {[%clk 0:02:56.9]}
8... Nf6 {[%clk 0:02:52.9]} 9. Nd5 {[%clk 0:02:56.7]} 9... Nxd5 {[%clk
0:02:47.4]} 10. exd5 {[%clk 0:02:57.6]} 10... Nb8 {[%clk 0:02:47.7]} 11. Nc4
{[%clk 0:02:57.7]} 11... Nd7 {[%clk 0:02:46.4]} 12. a4 {[%clk 0:02:57.8]} 12...
f5 {[%clk 0:02:46]} 13. f3 {[%clk 0:02:52.1]} 13... O-O {[%clk 0:02:46]} 14. Be2
{[%clk 0:02:51]} 14... Bg5 {[%clk 0:02:24.2]} 15. Bf2 {[%clk 0:02:49.9]} 15...
Nf6 {[%clk 0:02:15.9]} 16. O-O {[%clk 0:02:30.3]} 16... Qc7 {[%clk 0:02:07.6]}
17. Ra3 {[%clk 0:02:23.8]} 17... Bd7 {[%clk 0:02:01.3]} 18. Rc3 {[%clk
0:02:13.2]} 18... Qb8 {[%clk 0:01:48.4]} 19. Nb6 {[%clk 0:02:10.8]} 19... Ra7
{[%clk 0:01:47.3]} 20. h4 {[%clk 0:01:51]} 20... Bh6 {[%clk 0:01:47.5]} 21. g4
{[%clk 0:01:49.5]} 21... fxg4 {[%clk 0:01:44.5]} 22. fxg4 {[%clk 0:01:48.5]}
22... Be8 {[%clk 0:00:56.2]} 23. g5 {[%clk 0:01:43.3]} 23... Ne4 {[%clk
0:00:56.4]} 24. Rc8 {[%clk 0:01:35]} 1-0

[Event "Late-Titled-Tuesday-Blitz-May-14-2024"]
[Site "Chess.com"]
[Date "2024.05.14"]
[Round "11"]
[White "HandKnit"]
[Black "Christian-Toth"]
[Result "0-1"]
[WhiteElo "2487"]
[BlackElo "2395"]
[TimeControl "180+1"]
[EndTime "16:01:15 PDT"]
[Termination "Christian-Toth won by resignation"]

1. e4 {[%clk 0:03:00.9]} 1... e5 {[%clk 0:02:59.2]} 2. Nf3 {[%clk 0:03:00.8]}
2... Nf6 {[%clk 0:02:58.4]} 3. d4 {[%clk 0:02:57.2]} 3... Nxe4 {[%clk
0:02:55.3]} 4. dxe5 {[%clk 0:02:57.1]} 4... d5 {[%clk 0:02:54.4]} 5. Bd3 {[%clk
0:02:57.1]} 5... Nc5 {[%clk 0:02:50.2]} 6. Be2 {[%clk 0:02:56.9]} 6... Be7
{[%clk 0:02:44.5]} 7. O-O {[%clk 0:02:57]} 7... O-O {[%clk 0:02:44.4]} 8. Re1
{[%clk 0:02:55.1]} 8... Ne6 {[%clk 0:02:42]} 9. Nc3 {[%clk 0:02:51.2]} 9... c6
{[%clk 0:02:40]} 10. Bf1 {[%clk 0:02:50.5]} 10... b5 {[%clk 0:02:38.6]} 11. Ne2
{[%clk 0:02:49.8]} 11... a5 {[%clk 0:02:37.4]} 12. Nf4 {[%clk 0:02:47.2]} 12...
Nxf4 {[%clk 0:02:34.8]} 13. Bxf4 {[%clk 0:02:48.1]} 13... Be6 {[%clk 0:02:33.8]}
14. Bg3 {[%clk 0:02:45.5]} 14... Qb6 {[%clk 0:02:29.7]} 15. Bd3 {[%clk
0:02:41.8]} 15... c5 {[%clk 0:02:27]} 16. c3 {[%clk 0:02:41.7]} 16... Nc6 {[%clk
0:02:25.8]} 17. Bc2 {[%clk 0:02:40.3]} 17... Rad8 {[%clk 0:02:18]} 18. Qd2
{[%clk 0:02:39.7]} 18... d4 {[%clk 0:02:14.1]} 19. cxd4 {[%clk 0:02:34.5]} 19...
Nxd4 {[%clk 0:02:15]} 20. Nxd4 {[%clk 0:02:34.3]} 20... Rxd4 {[%clk 0:02:15.7]}
21. Qe3 {[%clk 0:02:30.8]} 21... Rfd8 {[%clk 0:02:15.3]} 22. b3 {[%clk
0:02:24.7]} 22... c4 {[%clk 0:02:14.5]} 23. bxc4 {[%clk 0:02:22.1]} 23... Bxc4
{[%clk 0:02:15.4]} 24. e6 {[%clk 0:01:45]} 24... Bxe6 {[%clk 0:02:13.7]} 25. Be5
{[%clk 0:01:44.6]} 25... Bc5 {[%clk 0:02:11.9]} 26. Bxd4 {[%clk 0:01:34.7]}
26... Bxd4 {[%clk 0:02:09.7]} 27. Qg3 {[%clk 0:01:31.4]} 27... Bxa1 {[%clk
0:02:02.3]} 28. Rxa1 {[%clk 0:01:32.3]} 28... Rd2 {[%clk 0:01:59]} 29. Be4
{[%clk 0:01:25.1]} 29... g6 {[%clk 0:01:51.1]} 30. h4 {[%clk 0:01:23.6]} 30...
Qd4 {[%clk 0:01:50.5]} 31. Re1 {[%clk 0:01:22.8]} 31... Bxa2 {[%clk 0:01:31]}
32. Qb8+ {[%clk 0:01:20.3]} 32... Kg7 {[%clk 0:01:30]} 33. Qxb5 {[%clk
0:01:18.4]} 33... Qxf2+ {[%clk 0:01:29.8]} 34. Kh2 {[%clk 0:01:16.2]} 34...
Qxh4+ {[%clk 0:01:29.6]} 0-1

[Event "Late-Titled-Tuesday-Blitz-May-14-2024"]
[Site "Chess.com"]
[Date "2024.05.14"]
[Round "11"]
[White "Walter_White_Poland"]
[Black "PawnEatingZombie"]
[Result "1-0"]
[WhiteElo "2382"]
[BlackElo "2295"]
[TimeControl "180+1"]
[EndTime "16:01:19 PDT"]
[Termination "Walter_White_Poland won by resignation"]

1. e4 {[%clk 0:03:00.9]} 1... c5 {[%clk 0:02:57.5]} 2. Nf3 {[%clk 0:03:00.7]}
2... Nc6 {[%clk 0:02:55.3]} 3. Nc3 {[%clk 0:02:59.8]} 3... g6 {[%clk 0:02:53.6]}
4. Bb5 {[%clk 0:02:59.1]} 4... Bg7 {[%clk 0:02:52.6]} 5. O-O {[%clk 0:02:58.4]}
5... Nd4 {[%clk 0:02:51.1]} 6. Nxd4 {[%clk 0:02:57.4]} 6... cxd4 {[%clk
0:02:50.8]} 7. Ne2 {[%clk 0:02:57.3]} 7... Qb6 {[%clk 0:02:46.4]} 8. Bc4 {[%clk
0:02:55.9]} 8... Nf6 {[%clk 0:02:42.9]} 9. d3 {[%clk 0:02:55.6]} 9... O-O {[%clk
0:02:42.1]} 10. Kh1 {[%clk 0:02:52.4]} 10... d5 {[%clk 0:02:29.8]} 11. exd5
{[%clk 0:02:47.5]} 11... Qc5 {[%clk 0:02:25.4]} 12. Nf4 {[%clk 0:02:36.5]} 12...
b5 {[%clk 0:02:02.4]} 13. b4 {[%clk 0:02:06.4]} 13... Qxb4 {[%clk 0:01:54.5]}
14. Bb3 {[%clk 0:02:06.1]} 14... Bb7 {[%clk 0:01:47.3]} 15. a4 {[%clk
0:02:04.1]} 15... Qc3 {[%clk 0:01:31.9]} 16. Bd2 {[%clk 0:01:47.6]} 16... Qc5
{[%clk 0:01:31.2]} 17. axb5 {[%clk 0:01:45.4]} 17... Nxd5 {[%clk 0:01:23.4]} 18.
Nxd5 {[%clk 0:01:44.7]} 18... Bxd5 {[%clk 0:01:22.9]} 19. Qb1 {[%clk 0:01:24.5]}
19... Qxb5 {[%clk 0:01:15.3]} 20. Ra5 {[%clk 0:01:21.1]} 20... Qxa5 {[%clk
0:01:01]} 21. Bxa5 {[%clk 0:01:20.5]} 21... Rab8 {[%clk 0:01:00.4]} 22. Bxd5
{[%clk 0:01:14.2]} 1-0